bitfinex-derivatives/quotes_BTCF0:USTF0_20210703
["timestamp","ask_amount","ask_price","bid_price","bid_amount"]
[1625317731950,0.01719026,34465.0,34463.0,6.70199672]
[1625317732052,0.66971682,34468.0,34463.0,6.70199672]
[1625317732152,0.24057544,34479.0,34463.0,7.20199672]
[1625317732355,0.24057544,34479.0,34463.0,7.70199672]
[1625317732456,0.01718776,34470.0,34464.0,0.00343755]
[1625317732554,0.01718776,34470.0,34465.0,0.5]
[1625317732654,1.00498234,34471.0,34465.0,0.618]
[1625317732906,1.00498234,34471.0,34466.0,0.00343747]
[1625317733057,1.00498234,34471.0,34466.0,0.12143747]
[1625317733159,0.24057544,34478.0,34470.0,1.36992639]
[1625317733257,0.24057544,34478.0,34470.0,1.74161639]
[1625317733357,0.24057544,34478.0,34470.0,1.80061639]
[1625317733456,0.01718737,34474.0,34470.0,1.80061639]
[1625317733556,0.01718737,34474.0,34473.0,0.72172632]
[1625317733757,0.01718737,34474.0,34473.0,0.83972632]
[1625317734159,0.01718737,34474.0,34473.0,2.20951682]
[1625317734561,0.24057544,34478.0,34473.0,2.20951682]
[1625317735015,0.24057544,34478.0,34474.0,1.36885049]
[1625317735163,0.24057544,34478.0,34474.0,1.42785049]
[1625317736716,0.24057544,34478.0,34474.0,0.059]
[1625317740375,0.24057544,34478.0,34474.0,1.42646069]
[1625317740827,0.24057544,34478.0,34474.0,0.059]
[1625317741125,0.24057544,34484.0,34474.0,0.118]
[1625317741527,0.24057544,34484.0,34474.0,1.48478025]
[1625317741627,0.24057544,34484.0,34474.0,1.72535569]
[1625317745186,0.24057544,34484.0,34474.0,0.35857544]
[1625317746785,0.24057544,34484.0,34474.0,1.72356163]
[1625317747838,0.24057544,34484.0,34474.0,0.35857544]
[1625317749539,0.24057544,34484.0,34474.0,0.44547544]
[1625317750087,0.24057544,34487.0,34474.0,0.44547544]
[1625317750390,0.24057544,34487.0,34474.0,1.81027317]
[1625317752691,0.24057544,34487.0,34474.0,3.00394461]
[1625317754343,1.17122642,34489.0,34474.0,3.00394461]
[1625317754749,1.17122642,34489.0,34474.0,2.91704461]
[1625317754901,1.228343,34490.0,34474.0,2.91704461]
[1625317755301,1.17123248,34489.0,34474.0,2.91704461]
[1625317756907,1.17072095,34488.0,34474.0,2.91704461]
[1625317757009,0.0119,34475.0,34474.0,2.91704461]
[1625317757508,0.0119,34475.0,34474.0,1.55224688]
[1625317757858,0.0119,34475.0,34474.0,2.9164867]
[1625317758609,0.0119,34475.0,34474.0,1.55224688]
[1625317759612,0.0119,34475.0,34474.0,1.55568383]
[1625317759761,0.0119,34475.0,34474.0,2.91973121]
[1625317762765,0.0119,34475.0,34474.0,3.94266212]
[1625317764971,0.02908562,34475.0,34474.0,3.94266212]
[1625317765272,0.02908562,34475.0,34474.0,2.57861474]
[1625317766023,0.02908562,34475.0,34474.0,4.16695278]
[1625317766221,0.0119,34475.0,34474.0,4.16695278]
[1625317766822,0.02908573,34475.0,34474.0,4.16695278]
[1625317766924,0.02908573,34475.0,34474.0,2.80294474]
[1625317767373,0.02908573,34475.0,34474.0,2.57861474]
[1625317768124,0.02908573,34475.0,34474.0,1.3849433]
[1625317773584,0.02908573,34475.0,34474.0,1.3259433]
[1625317773687,0.02908573,34475.0,34474.0,1.3849433]
[1625317773838,0.02908573,34475.0,34474.0,0.36201239]
[1625317773934,0.02908573,34475.0,34474.0,0.35857544]
[1625317775637,0.02908573,34475.0,34474.0,0.66303544]
[1625317776089,0.02908573,34475.0,34474.0,1.68686411]
[1625317776338,0.02908573,34475.0,34474.0,1.69030149]
[1625317776590,0.02908573,34475.0,34474.0,2.88487553]
[1625317778243,0.02908573,34475.0,34474.0,1.69030149]
[1625317779293,0.02908573,34475.0,34474.0,2.88578717]
[1625317780699,0.02908573,34475.0,34474.0,4.25305528]
[1625317784506,0.23069573,34475.0,34474.0,4.25305528]
[1625317784707,0.23069573,34475.0,34474.0,4.2496179]
[1625317784857,0.23069573,34475.0,34474.0,0.35857544]
[1625317784960,0.23069573,34475.0,34474.0,0.36201298]
[1625317785156,0.23069573,34475.0,34474.0,0.35857544]
[1625317785357,0.23069573,34475.0,34474.0,2.58379242]
[1625317789065,1.23561852,34475.0,34474.0,2.58379242]
[1625317790865,1.23561852,34475.0,34474.0,3.9555756]
[1625317792321,1.90676986,34475.0,34474.0,4.64146403]
[1625317794928,1.90676986,34475.0,34474.0,4.64490149]
[1625317795026,1.70515986,34475.0,34474.0,4.64490149]
[1625317795577,0.02908573,34475.0,34474.0,4.64490149]
[1625317796029,0.02908573,34475.0,34474.0,6.18815393]
[1625317797682,0.02908573,34475.0,34474.0,6.27395393]
[1625317797783,0.02908573,34475.0,34474.0,6.18815393]
[1625317798886,0.19715489,34475.0,34474.0,6.18815393]
[1625317801143,0.02908573,34475.0,34474.0,4.64490149]
[1625317801993,0.1971725,34475.0,34474.0,6.18823933]
[1625317802548,0.4260425,34475.0,34474.0,4.44265715]
[1625317802644,0.4260425,34475.0,34474.0,2.62151969]
[1625317802745,0.4850425,34475.0,34474.0,2.62151969]
[1625317802849,0.98801485,34475.0,34474.0,0.68588843]
[1625317802995,1.04701485,34475.0,34474.0,0.68588843]
[1625317803197,1.0813945,34475.0,34473.0,0.68596558]
[1625317803397,0.05157066,34474.0,34473.0,0.68596558]
[1625317803596,0.83993415,34474.0,34472.0,0.68601104]
[1625317803946,0.77330008,34473.0,34472.0,0.68601104]
[1625317804096,1.5033294,34473.0,34471.0,1.63194358]
[1625317804446,0.01719133,34472.0,34471.0,1.63194358]
[1625317804546,0.07619133,34472.0,34471.0,1.63194358]
[1625317804697,0.11057338,34472.0,34471.0,1.63194358]
[1625317804796,0.78148535,34472.0,34471.0,0.9459]
[1625317804996,0.7471033,34472.0,34471.0,0.9459]
[1625317806353,0.7471033,34472.0,34471.0,1.63129675]
[1625317809160,0.7471033,34472.0,34471.0,0.9459]
[1625317809817,0.7471033,34472.0,34471.0,1.25276]
[1625317809961,0.7471033,34472.0,34471.0,1.49333544]
[1625317810460,0.7471033,34472.0,34471.0,2.17845757]
[1625317810861,0.6881033,34472.0,34471.0,2.17845757]
[1625317810963,0.01719133,34472.0,34471.0,2.23745757]
[1625317811062,0.91284699,34473.0,34471.0,2.23745757]
[1625317811212,0.24057544,34473.0,34471.0,2.23745757]
[1625317811313,0.24057544,34473.0,34472.0,0.68502061]
[1625317811412,0.24057544,34473.0,34472.0,0.74402061]
[1625317811513,0.24057544,34473.0,34472.0,0.80302061]
[1625317811614,0.24057544,34473.0,34472.0,0.80645798]
[1625317811766,0.24057544,34473.0,34472.0,2.34774474]
[1625317811864,0.24057544,34473.0,34472.0,2.34430737]
[1625317812218,0.24057544,34473.0,34472.0,2.34774461]
[1625317812767,0.24057544,34473.0,34472.0,2.34430737]
[1625317813119,0.24057544,34473.0,34472.0,0.80302061]
[1625317815825,0.40902085,34473.0,34472.0,0.80302061]
[1625317815927,0.40902085,34473.0,34472.0,0.74402061]
[1625317816126,0.24057544,34473.0,34472.0,0.74402061]
[1625317816225,0.25776327,34473.0,34472.0,0.74402061]
[1625317817879,0.25776327,34473.0,34472.0,2.1145558]
[1625317818280,0.40910281,34473.0,34472.0,2.1145558]
[1625317818530,0.40910281,34473.0,34472.0,2.1735558]
[1625317818631,0.40910281,34473.0,34472.0,2.1145558]
[1625317818833,0.40910281,34473.0,34472.0,2.1735558]
[1625317820487,0.40910281,34473.0,34472.0,2.1145558]
[1625317820637,0.40910281,34473.0,34472.0,2.1735558]
[1625317821838,0.42629011,34473.0,34472.0,2.1735558]
[1625317822338,0.40910281,34473.0,34472.0,2.1735558]
[1625317822438,0.16852737,34473.0,34472.0,2.1735558]
[1625317822640,0.16852737,34473.0,34472.0,2.68769003]
[1625317822992,0.16913345,34474.0,34472.0,5.42967469]
[1625317823393,0.18103281,34475.0,34473.0,5.31254674]
[1625317823595,0.18103281,34475.0,34473.0,5.37154674]
[1625317823896,0.18103281,34475.0,34474.0,3.77008688]
[1625317823994,0.18103281,34475.0,34474.0,3.82908688]
[1625317824093,0.18103281,34475.0,34474.0,4.06966232]
[1625317825249,0.18103281,34475.0,34474.0,4.12866232]
[1625317825551,0.18103281,34475.0,34474.0,5.67108108]
[1625317825748,0.18103281,34475.0,34474.0,5.67451795]
[1625317826050,0.0119,34475.0,34474.0,5.91509339]
[1625317826301,0.0119,34475.0,34474.0,7.62830754]
[1625317827406,0.007,34475.0,34474.0,7.62830754]
[1625317832162,0.16951881,34483.0,34474.0,8.12830754]
[1625317832362,0.16948375,34484.0,34474.0,8.12830754]
[1625317832463,0.16948375,34484.0,34482.0,3.76514615]
[1625317832562,0.16948375,34484.0,34482.0,4.06308615]
[1625317833114,0.16948375,34484.0,34483.0,4.79199721]
[1625317833564,0.16948375,34484.0,34483.0,4.87759721]
[1625317834117,0.16948375,34484.0,34483.0,5.59932353]
[1625317836321,0.1693154,34485.0,34483.0,5.59932353]
[1625317836873,0.1693154,34485.0,34484.0,3.42088886]
[1625317839527,0.16935466,34486.0,34484.0,4.78887169]
[1625317840128,0.16935466,34486.0,34485.0,3.66054044]
[1625317840629,0.16935466,34486.0,34485.0,3.74694044]
[1625317840779,0.03895466,34486.0,34485.0,3.74694044]
[1625317840879,0.03895466,34486.0,34485.0,3.80594044]
[1625317840977,0.40368027,34487.0,34485.0,3.80594044]
[1625317841078,0.30598027,34487.0,34485.0,3.80594044]
[1625317841180,0.30598027,34487.0,34485.0,3.86494044]
[1625317841281,0.02088027,34487.0,34485.0,3.86494044]
[1625317841430,0.50802983,34490.0,34485.0,5.7324819]
[1625317841884,0.24057544,34496.0,34489.0,3.58910908]
[1625317842031,0.24057544,34496.0,34489.0,3.95929908]
[1625317842130,0.24057544,34496.0,34495.0,0.48115088]
[1625317842330,0.24057544,34496.0,34495.0,1.56560109]
[1625317843032,1.25732989,34499.0,34495.0,1.56560109]
[1625317843332,0.24057544,34499.0,34495.0,2.84902084]
[1625317843682,0.24057544,34499.0,34497.0,1.02464314]
[1625317843781,0.24057544,34499.0,34497.0,1.25800314]
[1625317843881,0.24057544,34499.0,34497.0,1.31700314]
[1625317844082,1.25736391,34499.0,34497.0,0.29236]
[1625317844232,1.25736391,34499.0,34498.0,0.24057544]
[1625317844733,0.24057544,34499.0,34498.0,0.24057544]
[1625317845634,0.24057544,34499.0,34498.0,0.29957544]
[1625317846534,0.24057544,34499.0,34498.0,0.24057544]
[1625317846986,1.25554952,34499.0,34498.0,0.24057544]
[1625317847289,0.24057544,34499.0,34498.0,0.24057544]
[1625317850492,0.24057544,34499.0,34498.0,0.29957544]
[1625317852548,0.57832821,34499.0,34498.0,0.29957544]
[1625317853301,0.57832821,34499.0,34498.0,0.24057544]
[1625317853653,0.59550475,34499.0,34498.0,0.24057544]
[1625317858872,0.25775198,34499.0,34498.0,0.24057544]
[1625317859268,0.59513632,34499.0,34498.0,0.24057544]
[1625317860120,0.65413632,34499.0,34498.0,0.24057544]
[1625317860521,0.31675198,34499.0,34498.0,0.24057544]
[1625317861019,0.25775198,34499.0,34498.0,0.24057544]
[1625317861772,0.59512046,34499.0,34498.0,0.24057544]
[1625317861973,0.59512046,34499.0,34498.0,0.29957544]
[1625317862072,0.59512046,34499.0,34498.0,0.24057544]
[1625317862171,0.59512046,34499.0,34498.0,0.29957544]
[1625317862675,0.25775198,34499.0,34498.0,0.29957544]
[1625317866433,0.23665198,34499.0,34498.0,0.29957544]
[1625317866586,0.2680898,34501.0,34498.0,0.29957544]
[1625317866787,0.2680898,34501.0,34498.0,0.35857544]
[1625317866935,0.01717572,34500.0,34498.0,0.35857544]
[1625317867188,0.2680898,34501.0,34498.0,0.35857544]
[1625317867290,0.24057544,34504.0,34498.0,1.38081299]
[1625317867743,0.01717325,34503.0,34498.0,1.38081299]
[1625317867839,0.01717325,34503.0,34499.0,1.02193457]
[1625317867939,0.01717325,34503.0,34499.0,1.08093457]
[1625317868039,0.01717325,34503.0,34499.0,1.08436904]
[1625317868239,0.01717325,34503.0,34502.0,0.48115088]
[1625317868342,0.01717325,34503.0,34502.0,0.73335088]
[1625317869292,0.01717325,34503.0,34502.0,0.82035088]
[1625317871149,0.12734869,34504.0,34502.0,0.82035088]
[1625317871250,1.01910797,34508.0,34502.0,0.82035088]
[1625317871451,0.01717206,34507.0,34502.0,0.82035088]
[1625317871603,1.01966037,34509.0,34502.0,0.87935088]
[1625317871950,0.01717168,34508.0,34502.0,0.87935088]
[1625317872052,0.01717168,34508.0,34502.0,1.90150333]
[1625317872302,0.01717168,34508.0,34507.0,0.48115088]
[1625317872401,0.01717168,34508.0,34507.0,0.54015088]
[1625317872702,0.01717095,34509.0,34507.0,0.54015088]
[1625317872904,0.01717118,34510.0,34507.0,0.54015088]
[1625317874005,0.01717068,34511.0,34507.0,0.54015088]
[1625317874254,1.25997727,34513.0,34507.0,0.54015088]
[1625317874255,0.01717003,34509.0,34507.0,0.54015088]
[1625317874504,0.01717017,34512.0,34507.0,0.54015088]
[1625317876407,0.24057544,34513.0,34507.0,0.54015088]
[1625317876408,0.24057544,34513.0,34511.0,0.54916544]
[1625317876509,0.29957544,34513.0,34511.0,0.54916544]
[1625317876659,0.01716934,34512.0,34511.0,0.54916544]
[1625317878514,0.01716934,34512.0,34511.0,0.24057544]
[1625317878765,1.03692213,34513.0,34511.0,0.24057544]
[1625317878865,1.09592213,34513.0,34511.0,0.24057544]
[1625317879013,1.15492213,34513.0,34511.0,0.24057544]
[1625317879266,0.0171711,34512.0,34511.0,0.24057544]
[1625317879365,1.09580271,34512.0,34511.0,0.24057544]
[1625317880219,1.03680271,34512.0,34511.0,0.24057544]
[1625317880319,1.15480271,34512.0,34511.0,0.24057544]
[1625317880423,1.36419271,34512.0,34511.0,0.24057544]
[1625317880723,3.9101556,34512.0,34509.0,0.24057544]
[1625317881122,0.07617436,34511.0,34509.0,0.24057544]
[1625317881223,3.56270147,34510.0,34509.0,0.24057544]
[1625317881423,3.68070147,34510.0,34509.0,0.24057544]
[1625317881625,3.69787562,34510.0,34509.0,0.24057544]
[1625317882327,4.1790265,34510.0,34509.0,0.24057544]
[1625317885635,2.82183113,34510.0,34509.0,0.24057544]
[1625317885735,2.76283113,34510.0,34509.0,0.24057544]
[1625317885935,2.70383113,34510.0,34509.0,0.24057544]
[1625317886337,2.70383113,34510.0,34509.0,0.53718544]
[1625317889549,2.76283113,34510.0,34509.0,0.53718544]
[1625317889645,2.70383113,34510.0,34509.0,0.53718544]
[1625317889796,4.06478501,34510.0,34509.0,0.53718544]
[1625317891002,2.70383113,34510.0,34509.0,0.53718544]
[1625317892002,1.51626397,34510.0,34509.0,0.53718544]
[1625317892552,2.7077773,34510.0,34509.0,0.53718544]
[1625317894406,2.8257773,34510.0,34509.0,0.53718544]
[1625317894506,2.8257773,34510.0,34509.0,0.24057544]
[1625317894957,4.18652796,34510.0,34509.0,0.24057544]
[1625317896363,4.22087412,34510.0,34509.0,0.24057544]
[1625317896759,5.75058655,34510.0,34509.0,0.24057544]
[1625317897915,5.75058655,34510.0,34500.0,1.23587544]
[1625317898315,0.05153302,34509.0,34500.0,1.23587544]
[1625317898465,4.30908212,34501.0,34500.0,1.23587544]
[1625317898564,4.36808212,34501.0,34500.0,1.23587544]
[1625317898663,4.42708212,34501.0,34500.0,1.23587544]
[1625317898864,4.47861743,34501.0,34500.0,1.23587544]
[1625317899066,4.44426056,34501.0,34500.0,1.23587544]
[1625317900167,4.44426056,34501.0,34500.0,0.9953]
[1625317900370,5.97082785,34501.0,34500.0,0.9953]
[1625317901571,6.64952081,34501.0,34500.0,0.9953]
[1625317910095,5.12295352,34501.0,34500.0,0.9953]
[1625317912248,5.12295352,34501.0,34500.0,1.22583]
[1625317912348,5.06395352,34501.0,34500.0,1.22583]
[1625317912447,5.06395352,34501.0,34500.0,1.46640544]
[1625317912651,3.70649538,34501.0,34500.0,1.55185577]
[1625317913104,3.70649538,34501.0,34500.0,1.46640544]
[1625317913202,3.68931694,34501.0,34500.0,1.46640544]
[1625317913353,3.42477694,34501.0,34500.0,1.46640544]
[1625317913452,3.48377694,34501.0,34500.0,1.46640544]
[1625317913552,2.23697986,34501.0,34500.0,1.46640544]
[1625317913653,2.29597986,34501.0,34500.0,1.46640544]
[1625317913751,2.31315615,34501.0,34500.0,1.46640544]
[1625317913954,4.86622141,34501.0,34500.0,1.46640544]
[1625317914704,3.50459795,34501.0,34500.0,1.55185814]
[1625317915104,3.44559795,34501.0,34500.0,1.55185814]
[1625317915754,3.44559795,34501.0,34500.0,1.46640544]
[1625317916255,3.38659795,34501.0,34500.0,1.46640544]
[1625317916506,3.36942166,34501.0,34500.0,1.46640544]
[1625317917058,3.12884622,34501.0,34500.0,1.46640544]
[1625317917158,0.9192684,34501.0,34500.0,3.23435154]
[1625317917357,0.9192684,34501.0,34500.0,3.17535154]
[1625317917507,0.9192684,34501.0,34500.0,3.23435154]
[1625317917658,0.24057544,34501.0,34500.0,5.7976748]
[1625317918358,0.24057544,34501.0,34500.0,5.8566748]
[1625317918510,0.08550325,34502.0,34500.0,5.8566748]
[1625317918912,0.0856053,34504.0,34501.0,4.27188215]
[1625317919110,0.0856053,34504.0,34501.0,4.33088215]
[1625317919211,0.08559108,34503.0,34501.0,1.42600229]
[1625317919311,0.08559108,34503.0,34501.0,1.36700229]
[1625317919714,0.68353279,34505.0,34500.0,2.83349996]
[1625317919715,0.08558849,34502.0,34500.0,2.83349996]
[1625317919861,0.08558849,34502.0,34500.0,2.89249996]
[1625317919964,0.08558849,34502.0,34500.0,2.83349996]
[1625317920214,0.68330904,34503.0,34501.0,2.90522712]
[1625317920512,0.80130904,34503.0,34501.0,2.90522712]
[1625317920713,0.80130904,34503.0,34502.0,1.02536608]
[1625317921013,0.81848393,34503.0,34502.0,1.02536608]
[1625317921266,0.81848393,34503.0,34501.0,1.19626999]
[1625317921267,3.03765233,34503.0,34501.0,0.68362486]
[1625317921515,0.01717546,34502.0,34501.0,0.68362486]
[1625317921665,3.03679309,34502.0,34500.0,1.91951706]
[1625317922015,1.70658327,34501.0,34500.0,1.91951706]
[1625317922115,1.72375888,34501.0,34500.0,1.91951706]
[1625317922217,1.84175888,34501.0,34500.0,1.91951706]
[1625317923721,0.13517561,34501.0,34500.0,1.23587544]
[1625317924228,3.03519189,34501.0,34500.0,1.23587544]
[1625317924675,4.39900233,34501.0,34500.0,1.23587544]
[1625317925075,4.39900233,34501.0,34500.0,0.9953]
[1625317928782,4.62842233,34501.0,34500.0,0.9953]
[1625317930483,4.60378256,34501.0,34500.0,0.9363]
[1625317930584,4.844358,34501.0,34500.0,0.9363]
[1625317930685,4.903358,34501.0,34500.0,0.9363]
[1625317930886,4.903358,34501.0,34500.0,0.8264]
[1625317930985,4.903358,34501.0,34494.0,0.68370002]
[1625317931136,0.059,34500.0,34487.0,0.68379261]
[1625317931286,0.16954519,34500.0,34487.0,0.68379261]
[1625317931637,0.05154635,34499.0,34487.0,0.68379261]
[1625317931736,0.16954635,34499.0,34487.0,0.68379261]
[1625317931987,3.39341136,34489.0,34486.0,1.43720726]
[1625317932086,3.63904136,34489.0,34486.0,1.43720726]
[1625317932237,3.75704136,34489.0,34486.0,1.43720726]
[1625317932486,3.77422385,34489.0,34486.0,1.43720726]
[1625317932587,4.25537473,34489.0,34486.0,1.43720726]
[1625317933138,4.25537473,34489.0,34486.0,0.75341765]
[1625317933538,4.25537473,34489.0,34486.0,0.24057544]
[1625317933788,4.25537473,34489.0,34486.0,0.75321234]
[1625317934541,4.25537473,34489.0,34486.0,0.24057544]
[1625317934940,3.06774861,34489.0,34486.0,0.75303091]
[1625317935338,3.05056612,34489.0,34486.0,0.75303091]
[1625317935842,3.05056612,34489.0,34486.0,1.43644492]
[1625317936641,3.06774749,34489.0,34486.0,1.43644492]
[1625317936791,3.06774749,34489.0,34486.0,0.75303091]
[1625317936991,3.05056612,34489.0,34486.0,0.75303091]
[1625317937242,3.05056612,34489.0,34486.0,0.24057544]
[1625317937442,3.06774776,34489.0,34486.0,0.24057544]
[1625317937643,4.25304569,34489.0,34486.0,0.24057544]
[1625317939595,4.19404569,34489.0,34486.0,0.24057544]
[1625317939796,4.25304569,34489.0,34486.0,0.24057544]
[1625317940998,4.23586405,34489.0,34486.0,0.24057544]
[1625317941297,4.17686405,34489.0,34486.0,0.24057544]
[1625317942450,4.23586405,34489.0,34486.0,0.24057544]
[1625317942550,4.17686405,34489.0,34486.0,0.24057544]
[1625317942651,4.23586405,34489.0,34486.0,0.24057544]
[1625317942901,4.17686405,34489.0,34486.0,0.24057544]
[1625317943051,4.23586405,34489.0,34486.0,0.24057544]
[1625317943151,4.17686405,34489.0,34486.0,0.24057544]
[1625317943506,2.99156612,34489.0,34486.0,0.24057544]
[1625317943604,3.05056612,34489.0,34486.0,0.24057544]
[1625317944006,4.23530182,34489.0,34486.0,0.24057544]
[1625317947411,4.25248392,34489.0,34486.0,0.24057544]
[1625317948163,4.25248392,34489.0,34484.0,0.51211037]
[1625317948264,4.25248392,34489.0,34483.0,1.49656457]
[1625317948516,0.0171828,34488.0,34483.0,1.49656457]
[1625317948612,0.0171828,34488.0,34483.0,0.9844]
[1625317948613,1.18561558,34484.0,34483.0,0.9844]
[1625317948712,1.48519102,34484.0,34483.0,0.9844]
[1625317948812,1.54419102,34484.0,34483.0,0.9844]
[1625317949115,1.56137482,34484.0,34483.0,0.9844]
[1625317949214,3.76081823,34484.0,34483.0,0.9844]
[1625317950566,3.70181823,34484.0,34483.0,0.9844]
[1625317951168,1.50237482,34484.0,34483.0,0.9844]
[1625317952571,1.44337482,34484.0,34483.0,0.9844]
[1625317952767,0.76590439,34484.0,34483.0,0.9844]
[1625317953269,0.76590439,34484.0,34483.0,1.0434]
[1625317953518,0.74872059,34484.0,34483.0,1.55567759]
[1625317953918,0.74872059,34484.0,34483.0,1.85942759]
[1625317954571,0.24057544,34484.0,34483.0,4.76213599]
[1625317954669,0.24057544,34484.0,34483.0,4.76557206]
[1625317954773,0.24057544,34484.0,34483.0,5.0061475]
[1625317955122,0.24057544,34484.0,34483.0,6.37217116]
[1625317956824,0.48115088,34489.0,34483.0,6.6127466]
[1625317957073,0.48115088,34489.0,34483.0,6.60931053]
[1625317957324,0.48115088,34489.0,34484.0,0.0034359]
[1625317957476,0.48115088,34489.0,34488.0,2.22050721]
[1625317957575,0.48115088,34489.0,34488.0,2.27950721]
[1625317958234,0.24057544,34489.0,34488.0,2.27950721]
[1625317958479,0.24057544,34489.0,34488.0,2.28294299]
[1625317958684,0.24057544,34489.0,34488.0,3.64942077]
[1625317958791,0.24057544,34489.0,34488.0,5.08566427]
[1625317959132,0.50958992,34493.0,34488.0,5.08566427]
[1625317959435,0.50958992,34493.0,34489.0,0.00343553]
[1625317959637,0.50958992,34493.0,34489.0,0.06243553]
[1625317959886,1.18843836,34497.0,34492.0,3.61063074]
[1625317960036,1.18843836,34497.0,34492.0,3.66963074]
[1625317960236,1.18843836,34497.0,34493.0,0.00343514]
[1625317960340,1.4304018,34502.0,34496.0,4.78175481]
[1625317960537,1.4304018,34502.0,34496.0,4.84075481]
[1625317960788,0.01717436,34501.0,34499.0,0.24057544]
[1625317960892,0.01717436,34501.0,34500.0,1.02444924]
[1625317961088,0.7505253,34502.0,34500.0,1.02444924]
[1625317961237,0.7505253,34502.0,34500.0,1.08344924]
[1625317961541,0.7505253,34502.0,34500.0,2.27852321]
[1625317962092,0.91962064,34502.0,34501.0,0.51218247]
[1625317962391,0.93679575,34502.0,34501.0,0.51218247]
[1625317962594,1.44613574,34502.0,34500.0,1.19508188]
[1625317962693,1.44613574,34502.0,34500.0,1.25408188]
[1625317962792,1.44613574,34502.0,34501.0,0.24057544]
[1625317962893,1.42896063,34502.0,34501.0,0.24057544]
[1625317964698,1.42896063,34502.0,34501.0,0.29957544]
[1625317964849,0.74991543,34502.0,34501.0,0.81161468]
[1625317965549,0.74991543,34502.0,34501.0,0.75261468]
[1625317966102,1.42892319,34502.0,34501.0,0.24057544]
[1625317966202,1.42892319,34502.0,34501.0,0.29957544]
[1625317966451,0.74991543,34502.0,34501.0,0.29957544]
[1625317966703,0.74991543,34502.0,34501.0,0.24057544]
[1625317966801,1.42890996,34502.0,34501.0,0.24057544]
[1625317967301,1.48790996,34502.0,34501.0,0.29957544]
[1625317967651,1.48790996,34502.0,34501.0,0.50876544]
[1625317967853,0.80891543,34502.0,34501.0,0.50876544]
[1625317968254,0.29957544,34502.0,34501.0,1.02066389]
[1625317968502,0.24057544,34502.0,34501.0,1.02066389]
[1625317968652,0.24057544,34502.0,34501.0,1.7031412]
[1625317969505,0.24057544,34502.0,34501.0,2.72671027]
[1625317970955,0.24057544,34502.0,34501.0,1.7031412]
[1625317971456,0.24057544,34502.0,34501.0,2.72644266]
[1625317972960,0.24057544,34502.0,34501.0,1.7031412]
[1625317973462,0.24057544,34502.0,34501.0,2.72628722]
[1625317974013,0.24057544,34502.0,34501.0,1.7031412]
[1625317975917,0.24057544,34502.0,34501.0,0.50876544]
[1625317976318,0.24057544,34502.0,34501.0,0.44976544]
[1625317976418,0.24057544,34502.0,34501.0,0.24057544]
[1625317976824,1.48629472,34502.0,34501.0,0.24057544]
[1625317976979,1.79812472,34502.0,34501.0,0.24057544]
[1625317977137,1.28950653,34502.0,34501.0,0.24057544]
[1625317977275,3.99958857,34502.0,34501.0,0.24057544]
[1625317977371,4.05858857,34502.0,34501.0,0.24057544]
[1625317977621,4.07576588,34502.0,34501.0,0.24057544]
[1625317977774,5.43010562,34502.0,34501.0,0.24057544]
[1625317979472,5.43010562,34502.0,34491.0,1.25125913]
[1625317979827,0.50864116,34493.0,34491.0,0.56877095]
[1625317979924,0.74485116,34493.0,34491.0,0.51177095]
[1625317980175,0.23621,34493.0,34491.0,1.19426077]
[1625317980975,0.24057544,34492.0,34491.0,1.19426077]
[1625317981979,0.24057544,34492.0,34491.0,0.51177095]
[1625317982480,0.24057544,34492.0,34491.0,0.57077095]
[1625317982727,0.24057544,34492.0,34491.0,1.25332145]
[1625317983579,0.24057544,34492.0,34491.0,2.27706374]
[1625317983935,0.24057544,34492.0,34491.0,4.83616107]
[1625317984035,1.18885452,34499.0,34491.0,4.83616107]
[1625317984135,1.18885452,34499.0,34491.0,5.08310618]
[1625317984235,1.24785452,34499.0,34491.0,5.08310618]
[1625317984336,0.059,34499.0,34498.0,1.1941941]
[1625317984541,0.059,34499.0,34498.0,1.4537641]
[1625317984690,1.18965894,34501.0,34498.0,1.4537641]
[1625317984786,0.24057544,34502.0,34498.0,2.47727863]
[1625317984886,0.24057544,34502.0,34501.0,0.48115088]
[1625317984985,0.24057544,34502.0,34501.0,0.54015088]
[1625317985237,0.24057544,34502.0,34501.0,2.75771717]
[1625317990247,0.25774826,34502.0,34501.0,2.75771717]
[1625317990547,0.25774826,34502.0,34501.0,1.05189695]
[1625317990845,0.25774826,34502.0,34501.0,1.39277104]
[1625317991549,0.25774826,34502.0,34501.0,1.73364044]
[1625317994858,0.25774826,34502.0,34501.0,1.39275763]
[1625317996160,0.25774826,34502.0,34501.0,0.88101156]
[1625317996562,0.25774826,34502.0,34501.0,1.05145212]
[1625317997013,0.25774826,34502.0,34501.0,0.88101156]
[1625317997867,0.25774826,34502.0,34501.0,1.05145429]
[1625317998165,0.25774826,34502.0,34501.0,1.39236425]
[1625317998516,0.25774826,34502.0,34501.0,1.05146216]
[1625317999719,0.31674826,34502.0,34501.0,1.05146216]
[1625318000070,0.48677571,34502.0,34501.0,0.71060148]
[1625318000218,0.70278571,34502.0,34501.0,0.71060148]
[1625318000422,1.0426847,34502.0,34501.0,0.48115088]
[1625318000722,1.72160894,34502.0,34501.0,0.48115088]
[1625318000821,2.74050253,34502.0,34501.0,0.48115088]
[1625318002723,2.74050253,34502.0,34501.0,0.24057544]
[1625318002875,3.92940317,34502.0,34501.0,0.24057544]
[1625318002976,3.92940317,34502.0,34501.0,0.29957544]
[1625318003175,3.62982773,34502.0,34501.0,0.24057544]
[1625318003324,3.41381773,34502.0,34501.0,0.29957544]
[1625318003526,3.39664491,34502.0,34501.0,0.29957544]
[1625318003726,3.32224491,34502.0,34501.0,0.29957544]
[1625318003892,1.52853802,34507.0,34501.0,3.71373401]
[1625318003893,0.51122609,34507.0,34501.0,3.71373401]
[1625318004329,0.51122609,34507.0,34502.0,0.00343403]
[1625318004429,0.17058798,34511.0,34506.0,2.72829376]
[1625318004528,0.17058798,34511.0,34506.0,2.92464376]
[1625318004679,0.17058798,34511.0,34506.0,2.98364376]
[1625318004832,0.51159031,34512.0,34510.0,0.51152527]
[1625318005029,0.51159031,34512.0,34510.0,0.57052527]
[1625318005130,0.51159031,34512.0,34511.0,0.48115088]
[1625318005231,0.51159031,34512.0,34511.0,0.54015088]
[1625318005329,0.511695,34513.0,34511.0,1.05164875]
[1625318005430,0.570695,34513.0,34511.0,1.05164875]
[1625318005680,0.570695,34513.0,34512.0,0.85249407]
[1625318005881,0.570695,34513.0,34512.0,0.91149407]
[1625318006181,0.58786404,34513.0,34512.0,0.91149407]
[1625318006435,0.570695,34513.0,34512.0,0.91149407]
[1625318006633,0.059,34513.0,34512.0,0.059]
[1625318006734,0.58734813,34513.0,34512.0,0.059]
[1625318006835,0.58734813,34513.0,34511.0,0.99267197]
[1625318007035,0.58734813,34513.0,34511.0,1.05167197]
[1625318007235,0.0171699,34512.0,34511.0,0.54015088]
[1625318007836,0.5284816,34512.0,34511.0,1.0516606]
[1625318008336,0.5113117,34512.0,34511.0,1.0516606]
[1625318008585,0.52848126,34512.0,34511.0,1.0516606]
[1625318009041,0.52839585,34512.0,34511.0,1.0516606]
[1625318009291,0.58739585,34512.0,34511.0,1.0516606]
[1625318009441,0.58739585,34512.0,34511.0,0.9926606]